[Event "44th Chess Olympiad Women 2022"]
[Site "Chennai"]
[Date "2022.08.03"]
[Round "6.36"]
[White "Ouellet, Maili-Jade"]
[Black "Quevedo, Andreina"]
[Result "1-0"]
[WhiteElo "2239"]
[BlackElo "1841"]
[Annotator "TA"]
[PlyCount "101"]
[EventDate "2022.??.??"]
[TimeControl "60"]

{[%evp 17,101,18,42,24,24,0,0,0,0,0,0,-11,-12,-4,-10,-18,0,-29,72,56,51,65,70,
66,83,0,19,15,44,0,0,0,0,-7,-8,-1,15,-16,-16,-11,-13,-20,-7,-4,-8,-96,22,40,88,
22,78,14,46,12,11,0,0,-8,345,322,456,456,397,423,439,433,417,289,260,135,229,
222,232,168,231,232,374,355,1034,1029,29967,12849,29978,29977,6191,5285]} 1. d4
{[%emt 0:00:02]} Nf6 {[%emt 0:00:08]} 2. c4 {[%emt 0:00:05]} e6 {[%emt 0:00:17]
} 3. Nf3 {[%emt 0:00:05]} Bb4+ {[%emt 0:00:23]} 4. Bd2 {[%emt 0:00:10]} Qe7 {
[%emt 0:00:12]} 5. g3 {[%emt 0:00:08]} O-O {[%emt 0:01:49]} 6. Bg2 {[%emt 0:00:
00]} Nc6 {[%emt 0:06:02]} 7. O-O {[%emt 0:00:15]} a5 {[%emt 0:04:13]} 8. Nc3 {
[%emt 0:00:09]} d6 {[%emt 0:04:30]} 9. Rc1 {[%emt 0:01:14]} e5 {[%emt 0:04:20]}
10. d5 {[%emt 0:01:36] E11: Bogo-Indian.} (10. Nd5 {looks sharper.} Nxd5 11.
cxd5 Nxd4 12. Nxd4 exd4 13. Bxb4 axb4 14. Qxd4 Rxa2 15. Qxb4 Qxe2 16. Rxc7 Qxb2
17. Qxd6 Qd4 18. Qc5) 10... Nb8 {[%emt 0:01:35]} 11. Bg5 {[%emt 0:04:02]} Bxc3
{[%emt 0:09:29]} 12. Rxc3 {[%emt 0:01:05] [#] The position is equal.} h6 $146 {
[%emt 0:02:07]} ({Predecessor:} 12... Na6 13. Qc2 h6 14. Bd2 Nc5 15. Ra3 a4 16.
Nh4 e4 17. f4 Bd7 18. Be3 Rfb8 {0-1 (35) Shalimov,V (2464)-Kucherenko,D (2226)
Simferopol 2003}) 13. Bxf6 {[%emt 0:01:06]} Qxf6 {[%emt 0:00:05]} 14. c5 {
[%emt 0:02:55]} Na6 {[%emt 0:03:28]} 15. cxd6 {[%emt 0:03:27]} cxd6 {[%emt 0:
00:00]} 16. Nd2 {[%emt 0:01:33]} Nc5 {[%emt 0:02:26]} 17. f4 {[%emt 0:08:14]}
Bg4 {[%emt 0:17:27]} (17... exf4 $11 {remains equal.} 18. Rxf4 Qe7) 18. h3 {
[%emt 0:05:05]} Bd7 {[%emt 0:00:41]} 19. fxe5 {[%emt 0:05:19]} Qxe5 {[%emt 0:
00:00]} 20. Nc4 {[%emt 0:00:13]} Qe7 {[%emt 0:01:06]} 21. Re3 {[%emt 0:09:51]}
(21. Qd4 $1 $16) 21... Qg5 {[%emt 0:04:19]} 22. Qd4 {[%emt 0:08:09]} Rae8 {
[%emt 0:21:23]} 23. Rff3 {[%emt 0:12:00]} Qg6 {[%emt 0:02:34]} 24. Qf4 {
[%emt 0:01:37]} Ne4 {[%emt 0:04:53]} 25. Rf1 $132 {[%emt 0:05:15] White is
fighting back} f5 {[%emt 0:07:07]} 26. Nxa5 {[%emt 0:10:06]} Bc8 {[%emt 0:00:
25]} 27. Qh4 {[%emt 0:02:49]} (27. Nc4 {is more complex.} b5 28. Nb6 Qh7 29.
Bxe4 fxe4 30. Qxd6 Bxh3 31. Rxf8+ Rxf8 32. Nd7) 27... Nd2 {[%emt 0:00:00][%csl
Ye3,Yf1]} 28. Rxe8 {[%emt 0:00:16]} Rxe8 {[%emt 0:00:11]} 29. Re1 {[%emt 0:03:
33]} Ne4 {[%emt 0:00:32] Black has compensation.} 30. Kh2 {[%emt 0:00:35]} Qf7
{[%emt 0:00:32]} 31. Rd1 {[%emt 0:01:03]} (31. Rc1 $11) 31... Kh7 {[%emt 0:00:
12]} (31... Qc7 $17 32. Nb3 Qc2) 32. Qf4 $1 $11 {[%emt 0:00:00]} Qf6 {[%emt 0:
00:54]} (32... g5 $14 33. Qe3 Kg8) 33. Nc4 {[%emt 0:04:13]} (33. Rc1 $1 $16)
33... g5 {[%emt 0:00:16]} (33... b5 $1 $11 34. Nb6 g5) 34. Qf3 {[%emt 0:01:18]}
({White should try} 34. Qe3 $16) 34... b5 {[%emt 0:00:37]} 35. Nb6 {[%emt 0:00:
24] aiming for Rc1.} Bb7 {[%emt 0:00:31]} 36. Qb3 {[%emt 0:00:00]} Ba6 {
[%emt 0:00:41]} 37. Qa3 {[%emt 0:00:27] [#]} Nc5 {[%emt 0:01:20] Loses the
game.} (37... f4 $1 $11 38. Nd7 (38. Qxa6 $2 fxg3+ 39. Kh1 Nf2+ 40. Kg1 Nxd1
$19) 38... Qf5 39. Bxe4 Rxe4) 38. b4 $18 {[%emt 0:01:07]} Na4 {[%emt 0:00:00]}
(38... Ne4 $142 39. Qxa6 f4 40. Qxb5 fxg3+ 41. Kg1 (41. Kh1 $2 Nf2+ 42. Kg1
Nxh3+ 43. Kh1 Nf2+ 44. Kg1 Nxd1 $19) 41... Qf2+ 42. Kh1 Re7) 39. Nxa4 {[%emt 0:
00:21]} bxa4 {[%emt 0:00:00]} 40. Qxa4 {[%emt 0:00:26]} Bxe2 {[%emt 0:00:03]}
41. Qxe8 {[%emt 0:33:18] Intending Re1 and mate.} Bxd1 {[%emt 0:30:05] Endgame
KQB-KQB} 42. Qe1 {[%emt 0:02:13]} Ba4 {[%emt 0:00:00] [#]} 43. Qe2 {[%emt 0:00:
00] Prevents Bb5.} (43. Qb1 $1 $18) 43... Kg7 {[%emt 0:00:00]} (43... f4 $16)
44. b5 {[%emt 0:00:00][%cal Yb4b5,Yb5b6,Yb6b7]} f4 {[%emt 0:00:00]} 45. Bf3 {
[%emt 0:00:00] And now b6 would win.} fxg3+ {[%emt 0:00:00]} (45... Qd4 $142
46. gxf4 gxf4) 46. Kxg3 {[%emt 0:00:00] Threatens to win with b6.} Qf4+ {
[%emt 0:00:00]} (46... Qd4 {might work better.} 47. Kg2 Kf8) 47. Kg2 {[%emt 0:
00:00] Strongly threatening b6.} Qf6 $2 {[%emt 0:00:00]} (47... Qd4 48. Qe7+
Kg8 49. Qe8+ Kg7 50. Qd7+ Kg8 51. Qe6+ Kg7 52. Qd7+ (52. Qxd6 Bxb5 53. Qe7+ Kg8
$14) 52... Kg8 53. Qc8+ Kh7 54. Qc7+ Kg8 55. Qc8+ Kh7 56. Qc7+ Kg8 57. Qc8+)
48. b6 {[%emt 0:00:00] Hoping for Bh5.} Qd8 {[%emt 0:00:00]} 49. Qb2+ {[%emt 0:
00:00]} (49. b7 $142 Qb6 50. Qe7+ Kg8 51. Bh5 Qb2+ 52. Kg3 Qc3+ 53. Bf3 Qb4 54.
Qd8+ Kh7 55. Qc7+ Bd7 56. Qxd7+ Kh8 57. Qe8+ Kg7 58. Qd7+ Kf6 59. Qe6+ Kg7 60.
Qe7+ Kg8 61. Qe8+ Kg7 62. b8=Q) 49... Kg8 {[%emt 0:00:00]} 50. b7 {[%emt 0:00:
00]} Qb8 {[%emt 0:00:00]} 51. Qb6 {[%emt 0:00:00] Weighted Error Value:
White=0.29 (precise) /Black=0.73} 1-0

[Event "44th Chess Olympiad Women 2022"]
[Site "Chennai"]
[Date "2022.08.03"]
[Round "6.36"]
[White "Silva Rosas, Natalia"]
[Black "Demchenko, Svitlana"]
[Result "0-1"]
[WhiteElo "1780"]
[BlackElo "2122"]
[Annotator "NA RC"]
[PlyCount "70"]
[EventDate "2022.??.??"]
[TimeControl "60"]

1. e4 {[%emt 0:00:02]} e5 {[%emt 0:00:08]} 2. d4 {[%emt 0:00:17]} exd4 {
[%emt 0:00:07]} 3. c3 {[%emt 0:01:45]} Qe7 {[%emt 0:00:08]} 4. Bd3 {[%emt 0:00:
00]} d5 {[%emt 0:00:09]} 5. Qe2 {[%emt 0:00:39]} dxe4 {[%emt 0:02:21]} 6. Bxe4
{[%emt 0:01:30]} Nf6 {[%emt 0:01:18]} 7. Bd3 {[%emt 0:00:46]} Nc6 {[%emt 0:00:
00]} 8. Bg5 {[%emt 0:12:38]} Be6 {[%emt 0:10:38]} 9. Nf3 {[%emt 0:05:55]} h6 {
[%emt 0:06:45]} 10. Bh4 {[%emt 0:04:35]} O-O-O {[%emt 0:03:13]} 11. O-O {
[%emt 0:04:29]} Bg4 {[%emt 0:05:11]} 12. h3 {[%emt 0:09:58]} Qxe2 {[%emt 0:00:
00]} 13. Bxe2 {[%emt 0:00:01]} d3 {[%emt 0:03:28]} 14. Bxf6 {[%emt 0:05:04]}
dxe2 {[%emt 0:05:37]} 15. Bxd8 {[%emt 0:04:11]} exf1=Q+ 16. Kxf1 {[%emt 0:00:
00]} Bxf3 {[%emt 0:01:19]} 17. Bh4 {[%emt 0:01:20]} Be4 {[%emt 0:01:45]} 18.
Nd2 {[%emt 0:00:12]} Bd3+ {[%emt 0:00:05]} 19. Kg1 {[%emt 0:00:27]} Bd6 {
[%emt 0:00:11]} 20. f3 {[%emt 0:01:47]} Re8 {[%emt 0:00:21]} 21. Rd1 {[%emt 0:
00:00]} Ne5 {[%emt 0:02:21]} 22. Nb3 {[%emt 0:06:46]} Bc2 {[%emt 0:00:37]} 23.
Rd2 {[%emt 0:00:25]} Bxb3 {[%emt 0:00:25]} 24. axb3 {[%emt 0:00:01]} Ng6 {
[%emt 0:00:40]} 25. Bf2 {[%emt 0:01:41]} Bf4 {[%emt 0:00:10]} 26. Rd3 {[%emt 0:
00:00]} Re2 {[%emt 0:01:13]} 27. g3 {[%emt 0:01:10]} Bd6 {[%emt 0:03:33]} 28.
f4 {[%emt 0:00:16]} Rxb2 {[%emt 0:01:14]} 29. c4 {[%emt 0:00:44]} b6 {[%emt 0:
00:00]} 30. Kf1 {[%emt 0:00:31]} Bc5 {[%emt 0:01:18]} 31. Be1 {[%emt 0:05:31]}
Ne7 {[%emt 0:00:17]} 32. g4 {[%emt 0:01:21]} Nc6 {[%emt 0:00:37]} 33. g5 {
[%emt 0:03:41]} h5 {[%emt 0:01:50]} 34. f5 {[%emt 0:02:55]} Rb1 {[%emt 0:00:30]
} 35. Ke2 {[%emt 0:02:08]} Nd4+ {[%emt 0:00:23]} 0-1

[Event "44th Chess Olympiad Women 2022"]
[Site "Chennai"]
[Date "2022.08.03"]
[Round "6.37"]
[White "Gomez Barrera, Javiera Belen"]
[Black "Zairbek kyzy, Begimai"]
[Result "1-0"]
[WhiteElo "2210"]
[BlackElo "1949"]
[Annotator "TA"]
[PlyCount "77"]
[EventDate "2022.??.??"]
[TimeControl "60"]

{[%evp 9,77,5,41,43,39,41,20,15,9,0,70,58,318,308,331,329,259,80,228,166,183,
175,167,202,414,393,378,404,451,434,429,422,455,377,370,369,362,304,271,281,
272,252,477,468,452,449,470,467,596,625,622,621,593,528,600,533,726,656,726,
723,710,721,714,713,703,696,675,679,772,766]} 1. e4 {[%emt 0:00:09]} c6 {
[%emt 0:00:06]} 2. d4 {[%emt 0:00:07]} d5 {[%emt 0:00:03]} 3. e5 {[%emt 0:00:
00]} c5 {[%emt 0:00:06]} 4. dxc5 {[%emt 0:00:28]} e6 {[%emt 0:00:01]} 5. Bd3 {
[%emt 0:01:39]} Bxc5 {[%emt 0:00:24]} 6. Qg4 {[%emt 0:03:20] B12: Caro-Kann:
Advance Variation.} Ne7 {[%emt 0:20:40]} 7. b4 {[%emt 0:35:17]} Bb6 {[%emt 0:
00:00]} 8. Nf3 {[%emt 0:11:16] The position is equal.} (8. Qxg7 Rg8 9. Qxh7 Bd4
$15) 8... Ng6 {[%emt 0:01:37]} 9. h4 {[%emt 0:01:15][%cal Yh2h4,Yh4h5] [#]
Hoping for h5.} Nc6 $146 {[%emt 0:05:42]} ({Better is} 9... Nd7 $11) ({
Predecessor:} 9... f5 10. Qg3 O-O 11. h5 Nh8 12. Bg5 Qc7 13. Nbd2 a5 14. b5 Nd7
15. Be7 Nxe5 16. Bxf8 Nxf3+ 17. Nxf3 Qxg3 18. fxg3 Kxf8 {1-0 (46) Moussard,J 
(2625)-Plazuelo Pascual,J (2448) Barcelona 2020}) 10. h5 $1 $14 {[%emt 0:24:39]
} Nge7 {[%emt 0:01:19]} (10... Ngxe5 $14 11. Nxe5 (11. Qxg7 $2 Nxf3+ 12. gxf3
Bd4 $19) 11... Qf6 12. Nxc6 bxc6) 11. Qxg7 $18 {[%emt 0:04:04]} Rg8 {[%emt 0:
01:48]} 12. Qxh7 {[%emt 0:00:01]} Qc7 {[%emt 0:10:29] [#]} 13. Bf4 {[%emt 0:05:
45]} (13. Bb5 Bd7 14. Bxc6 Bxc6 $14) (13. h6 $1 $18 {and the rest is easy.} Kf8
14. Kd1) 13... Nxb4 {[%emt 0:02:42]} (13... Bd7 $16 {was necessary.}) 14. O-O {
[%emt 0:01:53]} ({Wrong is} 14. Ng5 $2 {[#]} Rxg5 $1 15. h6 Nxd3+ 16. Qxd3 Rg8
$19) 14... Bd7 {[%emt 0:04:30]} 15. Bg5 {[%emt 0:03:18]} Nbc6 {[%emt 0:00:59]}
16. Bf6 {[%emt 0:01:32] aiming for h6.} Bd4 $2 {[%emt 0:06:13]} (16... O-O-O
17. Nc3 (17. Qxf7 Rdf8 $18) 17... a6 18. Qxf7 Rdf8) 17. Nxd4 {[%emt 0:03:07]
Really sharp!} Nxd4 {[%emt 0:00:07]} 18. Nd2 {[%emt 0:00:29] Inhibits Nf3+. h6
is the strong threat.} Bb5 {[%emt 0:00:00]} 19. Bxb5+ {[%emt 0:00:51]} Nxb5 {
[%emt 0:02:19]} 20. h6 {[%emt 0:00:21]} Rf8 {[%emt 0:04:57]} 21. Bg7 {[%emt 0:
00:39]} O-O-O {[%emt 0:02:23]} 22. Bxf8 {[%emt 0:00:26]} Rxf8 {[%emt 0:00:01]}
23. Qg7 {[%emt 0:00:21]} Qd8 {[%emt 0:00:00]} 24. Qf6 {[%emt 0:00:44]} Rh8 {
[%emt 0:00:56]} 25. Nf3 {[%emt 0:00:30]} Nf5 $2 {[%emt 0:02:25]} (25... Qf8)
26. Qxd8+ {[%emt 0:00:10] White is clearly winning.} Kxd8 {[%emt 0:00:02]} 27.
Ng5 {[%emt 0:00:51]} Nxh6 {[%emt 0:00:09]} 28. Rfb1 {[%emt 0:00:30]} Nc7 {
[%emt 0:04:29]} 29. Rxb7 {[%emt 0:00:02] Black must now prevent Rb8+.} Kd7 {
[%emt 0:00:12]} 30. Rab1 {[%emt 0:00:51]} Rg8 {[%emt 0:00:32]} 31. Nf3 {
[%emt 0:00:26]} Nf5 {[%emt 0:00:38]} 32. R1b3 {[%emt 0:00:35]} Ne7 {[%emt 0:01:
59]} 33. Nd4 {[%emt 0:00:27]} Nc6 {[%emt 0:00:00]} 34. Rc3 {[%emt 0:00:38]} Kc8
{[%emt 0:01:38]} 35. Rxc7+ $1 {[%emt 0:00:11]} ({Weaker is} 35. Nxc6 Kxb7 36.
Na5+ Kb6 $16) 35... Kxc7 {[%emt 0:00:01]} 36. Rxc6+ {[%emt 0:00:28]} Kb7 {
[%emt 0:00:21]} 37. Rd6 {[%emt 0:00:23]} Rg4 {[%emt 0:00:06]} 38. c3 {[%emt 0:
00:21]} Re4 {[%emt 0:00:29]} 39. Rd7+ {[%emt 0:00:00] Black got outplayed
after the opening. Weighted Error Value: White=0.19 (very precise) /Black=0.59}
1-0

[Event "44th Chess Olympiad Women 2022"]
[Site "Chennai"]
[Date "2022.08.03"]
[Round "6.37"]
[White "Samaganova, Alexandra"]
[Black "Morales Flores, Monserrat"]
[Result "1-0"]
[WhiteElo "1864"]
[BlackElo "1946"]
[Annotator "NA RC"]
[PlyCount "81"]
[EventDate "2022.??.??"]
[TimeControl "60"]

1. c4 {[%emt 0:00:04]} Nf6 {[%emt 0:00:10]} 2. Nc3 {[%emt 0:00:11]} g6 {
[%emt 0:00:11]} 3. g3 {[%emt 0:00:15]} Bg7 {[%emt 0:00:16]} 4. Bg2 {[%emt 0:00:
00]} O-O {[%emt 0:00:32]} 5. e3 {[%emt 0:00:46]} d6 {[%emt 0:01:06]} 6. Nge2 {
[%emt 0:00:31]} c5 {[%emt 0:04:33]} 7. O-O {[%emt 0:02:57]} Nc6 {[%emt 0:01:14]
} 8. a3 {[%emt 0:06:03]} e6 {[%emt 0:20:12]} 9. d4 {[%emt 0:09:58]} cxd4 {
[%emt 0:05:02]} 10. exd4 {[%emt 0:01:17]} e5 {[%emt 0:08:36]} 11. d5 {[%emt 0:
00:00]} Na5 {[%emt 0:09:49]} 12. b3 {[%emt 0:02:30]} Bf5 {[%emt 0:06:05]} 13.
h3 {[%emt 0:09:01]} h5 {[%emt 0:00:47]} 14. Be3 {[%emt 0:02:31]} b6 {[%emt 0:
00:00]} 15. Nc1 {[%emt 0:07:45]} Qc8 {[%emt 0:06:24]} 16. Kh2 {[%emt 0:03:30]}
Nb7 {[%emt 0:00:57]} 17. Nd3 {[%emt 0:08:24]} Nc5 {[%emt 0:05:49]} 18. Nb4 {
[%emt 0:04:31]} Re8 {[%emt 0:02:04]} 19. Nc6 {[%emt 0:05:00]} Nce4 {[%emt 0:00:
00]} 20. Ne2 {[%emt 0:03:55]} Nc5 {[%emt 0:00:54]} 21. b4 {[%emt 0:03:03]} Nb7
{[%emt 0:02:03]} 22. Nc3 {[%emt 0:01:23]} Kh7 {[%emt 0:02:09]} 23. Qe2 {
[%emt 0:04:26]} Nd8 {[%emt 0:02:59]} 24. Nb5 {[%emt 0:01:55]} Qd7 {[%emt 0:00:
00]} 25. Rfd1 {[%emt 0:02:12]} Ng8 {[%emt 0:02:17]} 26. c5 {[%emt 0:04:39]}
bxc5 {[%emt 0:00:32]} 27. bxc5 {[%emt 0:00:12]} dxc5 {[%emt 0:01:02]} 28. Bxc5
{[%emt 0:00:19]} e4 {[%emt 0:00:10]} 29. Rac1 {[%emt 0:02:04]} Nxc6 {[%emt 0:
00:00]} 30. dxc6 {[%emt 0:00:02]} Qxc6 {[%emt 0:00:28]} 31. Bxa7 {[%emt 0:00:
00]} Qa6 {[%emt 0:00:08]} 32. Rd6 {[%emt 0:00:56]} Qa4 {[%emt 0:00:39]} 33. Be3
{[%emt 0:01:40]} Rac8 {[%emt 0:00:30]} 34. Rb1 {[%emt 0:01:08]} Rc2 {[%emt 0:
00:00]} 35. Qd1 {[%emt 0:00:41]} Qc4 {[%emt 0:00:03]} 36. Bf1 {[%emt 0:00:47]}
Qc8 {[%emt 0:00:12]} 37. Na7 {[%emt 0:01:01]} Qc3 {[%emt 0:00:29]} 38. Kg1 {
[%emt 0:00:36]} Qxa3 {[%emt 0:01:06]} 39. Ra6 {[%emt 0:00:25]} Qc3 {[%emt 0:00:
00]} 40. Rc6 {[%emt 0:00:15]} Qxc6 {[%emt 0:00:29]} 41. Nxc6 {[%emt 0:30:06]}
1-0

[Event "44th Chess Olympiad Women 2022"]
[Site "Chennai"]
[Date "2022.08.03"]
[Round "6.37"]
[White "Sezdbekova Aizhan"]
[Black "Sanchez Tobar, Francisca Valenti"]
[Result "1/2-1/2"]
[WhiteElo "1615"]
[BlackElo "1839"]
[Annotator "NA RC"]
[PlyCount "112"]
[EventDate "2022.??.??"]
[TimeControl "60"]

1. e4 {[%emt 0:00:03]} e5 {[%emt 0:00:10]} 2. Nf3 {[%emt 0:00:07]} Nc6 {
[%emt 0:00:12]} 3. Bc4 {[%emt 0:00:38]} Bc5 {[%emt 0:00:46]} 4. c3 {[%emt 0:00:
00]} Nf6 {[%emt 0:05:36]} 5. d3 {[%emt 0:00:36]} a6 {[%emt 0:02:00]} 6. b4 {
[%emt 0:01:08]} Ba7 {[%emt 0:00:38]} 7. Bg5 {[%emt 0:03:30]} h6 {[%emt 0:00:40]
} 8. Bh4 {[%emt 0:00:09]} d6 {[%emt 0:00:25]} 9. Nbd2 {[%emt 0:01:26]} Be6 {
[%emt 0:01:46]} 10. a4 {[%emt 0:08:23]} O-O {[%emt 0:04:11]} 11. O-O {[%emt 0:
00:00]} Qd7 {[%emt 0:04:37]} 12. Bxf6 {[%emt 0:14:03]} gxf6 {[%emt 0:02:47]}
13. Nh4 {[%emt 0:02:26]} Kh7 {[%emt 0:02:38]} 14. Qf3 {[%emt 0:04:26]} Qd8 {
[%emt 0:24:36]} 15. Qh5 {[%emt 0:15:51]} Ne7 {[%emt 0:00:40]} 16. Kh1 {[%emt 0:
00:00]} Qd7 {[%emt 0:08:57]} 17. h3 {[%emt 0:09:03]} c6 {[%emt 0:20:48]} 18.
Bb3 {[%emt 0:05:41]} d5 {[%emt 0:01:08]} 19. Kh2 {[%emt 0:05:32]} Rg8 {[%emt 0:
00:00]} 20. Rae1 {[%emt 0:04:29]} Ng6 {[%emt 0:07:51]} 21. Nxg6 {[%emt 0:03:05]
} fxg6 {[%emt 0:01:48]} 22. Qe2 {[%emt 0:01:47]} d4 {[%emt 0:01:01]} 23. Bxe6 {
[%emt 0:01:52]} Qxe6 {[%emt 0:00:02]} 24. c4 {[%emt 0:00:37]} b5 {[%emt 0:00:
00]} 25. Ra1 {[%emt 0:01:30]} Bb6 {[%emt 0:01:59]} 26. Rfc1 {[%emt 0:01:30]}
Rgc8 {[%emt 0:01:18]} 27. a5 {[%emt 0:00:48]} Bd8 {[%emt 0:00:24]} 28. c5 {
[%emt 0:01:08]} Bc7 {[%emt 0:00:19]} 29. Rf1 {[%emt 0:00:48]} Rf8 {[%emt 0:00:
00]} 30. Kh1 {[%emt 0:00:51]} Rae8 {[%emt 0:00:19]} 31. Rae1 {[%emt 0:01:18]}
Rf7 {[%emt 0:01:08]} 32. f3 {[%emt 0:00:57]} h5 {[%emt 0:00:26]} 33. Rb1 {
[%emt 0:01:09]} Bd8 {[%emt 0:00:20]} 34. f4 {[%emt 0:00:41]} exf4 {[%emt 0:00:
00]} 35. Rxf4 {[%emt 0:00:15]} Bc7 {[%emt 0:00:06]} 36. Rf3 {[%emt 0:00:39]} g5
{[%emt 0:03:21]} 37. Rf5 {[%emt 0:00:27]} Kg6 {[%emt 0:00:46]} 38. Qf2 {
[%emt 0:01:01]} Qa2 {[%emt 0:01:23]} 39. Qe1 {[%emt 0:01:34]} Bf4 {[%emt 0:00:
00]} 40. Nb3 {[%emt 0:00:39]} Be3 {[%emt 0:00:18]} 41. Qd1 {[%emt 0:30:36]} Re5
{[%emt 0:30:27]} 42. Rf1 {[%emt 0:00:00]} g4 {[%emt 0:00:00]} 43. Ra1 {[%emt 0:
00:00]} Qb2 {[%emt 0:00:00]} 44. Rb1 {[%emt 0:00:00]} Qc3 {[%emt 0:00:00]} 45.
Na1 {[%emt 0:00:00]} Qd2 {[%emt 0:00:00]} 46. Qxd2 {[%emt 0:00:00]} Bxd2 {
[%emt 0:00:00]} 47. Nc2 {[%emt 0:00:00]} Bc3 {[%emt 0:00:00]} 48. Rf4 {[%emt 0:
00:00]} gxh3 {[%emt 0:00:00]} 49. gxh3 {[%emt 0:00:00]} Rg5 {[%emt 0:00:00]}
50. Kh2 {[%emt 0:00:00]} Re7 {[%emt 0:00:01]} 51. Rbf1 {[%emt 0:00:00]} Re6 {
[%emt 0:00:03]} 52. h4 {[%emt 0:00:00]} Rge5 {[%emt 0:02:45]} 53. Kg3 {[%emt 0:
00:00]} Kg7 {[%emt 0:00:59]} 54. R4f2 {[%emt 0:00:59]} Kg6 {[%emt 0:00:22]} 55.
Rf5 {[%emt 0:02:34]} Kg7 {[%emt 0:00:31]} 56. R5f2 {[%emt 0:01:48]} Kg6 {
[%emt 0:00:05]} 1/2-1/2

[Event "44th Chess Olympiad Women 2022"]
[Site "Chennai"]
[Date "2022.08.03"]
[Round "6.37"]
[White "Toro Pradenas, Maria Jose"]
[Black "Abaeva, Aiana"]
[Result "1-0"]
[WhiteElo "1945"]
[BlackElo "1595"]
[Annotator "NA RC"]
[PlyCount "109"]
[EventDate "2022.??.??"]
[TimeControl "60"]

1. e4 {[%emt 0:00:02]} e5 {[%emt 0:00:06]} 2. Nf3 {[%emt 0:00:06]} Nc6 {
[%emt 0:00:07]} 3. Bb5 {[%emt 0:00:05]} a6 {[%emt 0:00:11]} 4. Ba4 {[%emt 0:00:
00]} Nf6 {[%emt 0:00:41]} 5. d3 {[%emt 0:00:09]} d6 {[%emt 0:02:40]} 6. c3 {
[%emt 0:03:17]} b5 {[%emt 0:06:18]} 7. Bc2 {[%emt 0:02:04]} Bg4 {[%emt 0:00:32]
} 8. h3 {[%emt 0:01:27]} Bh5 {[%emt 0:01:46]} 9. Nbd2 {[%emt 0:03:47]} Be7 {
[%emt 0:01:59]} 10. Nf1 {[%emt 0:03:40]} d5 {[%emt 0:09:34]} 11. Ng3 {[%emt 0:
00:00]} Bg6 {[%emt 0:00:32]} 12. O-O {[%emt 0:03:19]} dxe4 {[%emt 0:06:39]} 13.
dxe4 {[%emt 0:02:15]} Qxd1 {[%emt 0:09:39]} 14. Rxd1 {[%emt 0:01:18]} Nd7 {
[%emt 0:01:24]} 15. a4 {[%emt 0:04:13]} b4 {[%emt 0:02:20]} 16. Be3 {[%emt 0:
00:00]} Na5 {[%emt 0:12:46]} 17. Rd5 {[%emt 0:37:25]} Nc4 {[%emt 0:01:57]} 18.
Bc1 {[%emt 0:00:44]} bxc3 {[%emt 0:17:09]} 19. bxc3 {[%emt 0:00:03]} Ndb6 {
[%emt 0:00:37]} 20. Rd1 {[%emt 0:00:32]} a5 {[%emt 0:00:12]} 21. Kf1 {[%emt 0:
00:00]} O-O {[%emt 0:01:01]} 22. Nd2 {[%emt 0:00:54]} Rad8 {[%emt 0:02:14]} 23.
Bb3 {[%emt 0:00:31]} Nxd2+ {[%emt 0:00:57]} 24. Bxd2 {[%emt 0:00:41]} Nd7 {
[%emt 0:09:30]} 25. Be3 {[%emt 0:00:22]} c6 {[%emt 0:00:59]} 26. Bc4 {[%emt 0:
00:00]} Nc5 {[%emt 0:00:24]} 27. Bxc5 {[%emt 0:00:55]} Bxc5 {[%emt 0:00:06]}
28. Rxd8 {[%emt 0:01:03]} Rxd8 {[%emt 0:00:05]} 29. Rb1 {[%emt 0:00:06]} h6 {
[%emt 0:00:45]} 30. Ke2 {[%emt 0:00:17]} Kf8 {[%emt 0:02:43]} 31. Rb7 {[%emt 0:
00:00]} Ke8 {[%emt 0:01:41]} 32. Nf5 {[%emt 0:00:15]} Bf8 {[%emt 0:04:33]} 33.
Rc7 {[%emt 0:00:20]} Rb8 {[%emt 0:00:12]} 34. Rxc6 {[%emt 0:00:15]} Bxf5 {
[%emt 0:00:15]} 35. exf5 {[%emt 0:00:07]} f6 {[%emt 0:02:18]} 36. Bb5 {[%emt 0:
00:00]} Kf7 {[%emt 0:00:34]} 37. Rc7+ {[%emt 0:00:22]} Kg8 {[%emt 0:00:53]} 38.
Ra7 {[%emt 0:00:30]} Rc8 {[%emt 0:00:26]} 39. Kd3 {[%emt 0:00:43]} Bc5 {
[%emt 0:00:56]} 40. Bc4+ {[%emt 0:00:47]} Kh7 {[%emt 0:00:10]} 41. Rxa5 {
[%emt 0:30:07]} Bxf2 {[%emt 0:30:12]} 42. Bd5 {[%emt 0:03:08]} Be1 {[%emt 0:00:
00]} 43. Ra8 {[%emt 0:00:00]} e4+ {[%emt 0:00:00]} 44. Bxe4 {[%emt 0:00:00]}
Rxc3+ {[%emt 0:00:00]} 45. Ke2 {[%emt 0:00:00]} Bg3 {[%emt 0:00:00]} 46. a5 {
[%emt 0:00:00]} Ra3 {[%emt 0:00:00]} 47. Bd5 {[%emt 0:00:00]} h5 {[%emt 0:00:
00]} 48. a6 {[%emt 0:00:00]} Be5 {[%emt 0:00:00]} 49. Bf3 {[%emt 0:00:00]} h4 {
[%emt 0:00:00]} 50. Bb7 {[%emt 0:01:17]} Kh6 {[%emt 0:00:00]} 51. Rh8+ {
[%emt 0:01:53]} Kg5 {[%emt 0:00:00]} 52. Rh7 {[%emt 0:00:06]} Kxf5 {[%emt 0:00:
00]} 53. Rxg7 {[%emt 0:00:06]} Ke6 {[%emt 0:00:00]} 54. Rh7 {[%emt 0:02:01]}
Bg3 {[%emt 0:00:00]} 55. a7 {[%emt 0:00:09]} 1-0

[Event "44th Chess Olympiad Women 2022"]
[Site "Chennai"]
[Date "2022.08.03"]
[Round "6.38"]
[White "Berezovska, Svetlana"]
[Black "Maklakova, Nellija"]
[Result "*"]
[WhiteElo "1781"]
[BlackElo "1819"]
[Annotator "NA RC"]
[PlyCount "70"]
[EventDate "2022.??.??"]
[TimeControl "60"]

1. e4 {[%emt 0:00:04]} e6 {[%emt 0:00:05]} 2. d4 {[%emt 0:00:06]} d5 {[%emt 0:
00:00]} 3. Bd3 {[%emt 0:00:23]} c5 {[%emt 0:00:18]} 4. dxc5 {[%emt 0:02:32]}
Bxc5 {[%emt 0:09:04]} 5. exd5 {[%emt 0:01:32]} exd5 {[%emt 0:01:20]} 6. Nf3 {
[%emt 0:01:02]} Bg4 {[%emt 0:02:29]} 7. O-O {[%emt 0:02:17]} Nc6 {[%emt 0:00:
00]} 8. Nc3 {[%emt 0:10:09]} Nge7 {[%emt 0:02:19]} 9. Bg5 {[%emt 0:04:06]} f6 {
[%emt 0:01:26]} 10. Bf4 {[%emt 0:02:27]} O-O {[%emt 0:02:19]} 11. h3 {[%emt 0:
00:00]} Bh5 {[%emt 0:01:05]} 12. Re1 {[%emt 0:07:53]} Qb6 {[%emt 0:04:11]} 13.
Bg3 {[%emt 0:09:11]} Qxb2 {[%emt 0:17:10]} 14. Nb5 {[%emt 0:21:53]} Qb4 {
[%emt 0:01:11]} 15. Rb1 {[%emt 0:07:39]} Qa5 {[%emt 0:03:08]} 16. Nc7 {[%emt 0:
00:00]} Bb4 {[%emt 0:08:50]} 17. c3 {[%emt 0:05:16]} Bxc3 {[%emt 0:00:51]} 18.
Rb5 {[%emt 0:00:48]} Qxa2 {[%emt 0:02:43]} 19. Re2 {[%emt 0:01:30]} Bxf3 {
[%emt 0:02:19]} 20. gxf3 {[%emt 0:00:10]} Qa1 {[%emt 0:02:42]} 21. Rb1 {
[%emt 0:00:52]} Qa5 {[%emt 0:00:34]} 22. Nxa8 {[%emt 0:01:18]} Rxa8 {[%emt 0:
00:00]} 23. Rxb7 {[%emt 0:00:54]} Bb4 {[%emt 0:12:38]} 24. Qb1 {[%emt 0:03:43]}
Kf8 {[%emt 0:00:36]} 25. Ra2 {[%emt 0:04:12]} Qc5 {[%emt 0:01:03]} 26. Bxh7 {
[%emt 0:01:22]} a5 {[%emt 0:00:24]} 27. Bd3 {[%emt 0:01:17]} Rc8 {[%emt 0:00:
00]} 28. Kg2 {[%emt 0:01:53]} Nd4 {[%emt 0:01:40]} 29. Rd7 {[%emt 0:00:40]} Qc6
{[%emt 0:01:25]} 30. Ra7 {[%emt 0:00:19]} Qe6 {[%emt 0:03:28]} 31. Ra6 {
[%emt 0:00:50]} Qf7 {[%emt 0:00:33]} 32. Ra7 {[%emt 0:00:42]} Qh5 {[%emt 0:00:
00]} 33. Qd1 {[%emt 0:00:18]} Nec6 {[%emt 0:01:26]} 34. Rd7 {[%emt 0:00:50]}
Re8 {[%emt 0:00:47]} 35. h4 {[%emt 0:01:02]} Re1 {[%emt 0:03:33]} *